Cogmind - Beta 14 @@@ ROGUE MODE // 2024.08.29 @ 10:23:59 Player: MOPO3 Result: Destroyed by G-47 Trooper with Particle Gun Performance ------------- Evolutions (2) 1000 Regions Visited (5) 1000 Robots Destroyed (41) 205 Value Destroyed (789) 789 Prototype IDs (1) 20 Alien Tech Used (0) 0 Bonus (443) 443 TOTAL SCORE: 3457 Bonus ------- High Alert Combat Kills 35 Follower Combat Kills 189 Aligned with FarCom 300 Friendly Fire -81 Cogmind --------- Core Integrity 0/550 Matter 94/300 Energy 100/100 System Corruption 4% Temperature Cool (9) Movement Core (700) Ox13 Location -8/Materials Parts ------- > --- POWER (1) -------- (None) > --- PROPULSION (4) --- (None) > --- UTILITY (4) ------ High-capacity Storage Unit Improved Signal Interpreter > --- WEAPON (2) ------- (None) > --- INVENTORY (20) --- Light Ion Engine Light Ion Engine Improved Ion Engine Light Nuclear Core Improved Hover Unit Airjet Airjet Airjet Improved Heat Sink High-capacity Matter Pod (200) Hardened Light Armor Plating Improved Light Armor Plating Improved Light Armor Plating Insulated Plating System Shield System Shield Light Assault Rifle High-powered Shotgun Peak State ------------ > --- POWER ------------ Light Nuclear Core > --- PROPULSION ------- Airjet Airjet Airjet Airjet > --- UTILITY ---------- High-capacity Storage Unit Structural Scanner Improved Signal Interpreter Improved Light Armor Plating > --- WEAPON ----------- High-powered Shotgun Rocket Launcher > --- INVENTORY -------- Light Ion Engine Light Ion Engine Light Ion Engine Improved Ion Engine Carbon-fiber Leg Titanium Leg Titanium Leg Improved Hover Unit Airjet High-capacity Matter Pod Hardened Light Armor Plating Improved Light Armor Plating Improved Light Armor Plating Insulated Plating System Shield System Shield Light Assault Rifle Grenade Launcher Grenade Launcher Grenade Launcher [Rating: 32] Favorites ----------- Power Light Ion Engine Engine Light Ion Engine Power Core Light Nuclear Core Propulsion Aluminum Leg Treads Light Treads Leg Aluminum Leg Hover Unit Airjet Utility Signal Interpreter Device Structural Scanner Storage High-capacity Storage Unit Processor Signal Interpreter Protection Hardened Light Armor Plating Weapon Grenade Launcher Energy Gun Medium Laser Ballistic Gun Light Assault Rifle Launcher Grenade Launcher Special Weapon Mining Laser Impact Weapon Heavy Hammer Build | -11 -10 -10 -10 -9 -8 ------- Run | Yrd Mat Min Exi Min Mat Slots Evolved 4 | . . . . . 4 Power . | . . . . . . Propulsion 2 | . . . . . 2 Utility 2 | . . . . . 2 Weapon . | . . . . . . Parts Attached 58 | 6 7 4 1 7 33 Power 8 | 1 1 . . 2 4 Engine 5 | 1 1 . . 1 2 Core 3 | . . . . 1 2 Reactor . | . . . . . . Propulsion 18 | 2 . 2 . 3 11 Treads 3 | 2 . . . . 1 Leg 11 | . . 2 . 3 6 Wheel . | . . . . . . Hover 4 | . . . . . 4 Flight . | . . . . . . Utility 10 | 1 3 . 1 . 5 Device 3 | . 1 . . . 2 Storage 3 | 1 1 . 1 . . Processor 2 | . 1 . . . 1 Hackware . | . . . . . . Protection 2 | . . . . . 2 Artifact . | . . . . . . Weapon 22 | 2 3 2 . 2 13 Energy Gun 1 | 1 . . . . . Energy Cannon . | . . . . . . Ballistic Gun 6 | 1 1 1 . . 3 Ballistic Cannon . | . . . . . . Launcher 11 | . 2 1 . 1 7 Special Weapon 1 | . . . . 1 . Impact Weapon 3 | . . . . . 3 Slashing Weapon . | . . . . . . Piercing Weapon . | . . . . . . Special Melee Weapon . | . . . . . . Unidentified Prototypes 1 | . . . . . 1 Parts Lost 18 | . 1 . . 3 14 Power 3 | . . . . . 3 Propulsion 7 | . . . . 2 5 Utility 3 | . 1 . . . 2 Weapon 5 | . . . . 1 4 Highest Loss Streak 9 | . 1 . . 2 9 To Critical Strikes . | . . . . . . Average Slot Usage (%) 94 | . 85 87 100 97 93 Engine 11 | . 14 14 14 13 2 Core 1 | . . . . . 5 Treads 4 | . 18 12 . . 4 Leg 19 | . . 3 28 25 16 Hover 2 | . . . . . 11 Device 1 | . 1 . . . 8 Storage 13 | . 15 14 14 14 9 Processor 12 | . 5 14 14 14 9 Protection 1 | . . . . . 8 Ballistic Gun 1 | . 14 1 . . 1 Launcher 19 | . 3 26 28 16 8 Special Weapon 3 | . . . . 11 1 Peak Build Rating 32 | 6 7 8 8 11 32 Average Rating 10 | 4 6 7 8 8 20 On Entrance 6 | . 6 7 8 8 11 Naked Turns . | . . . . . . Heaviest Build 57 | 11 21 19 49 49 57 Greatest Support 49 | 40 40 20 20 20 49 Greatest Overweight (x) 7 | . . . 2 4 7 Average Overweight (x) 1 | . . . 1 2 1 Largest Inventory Capacity 20 | 8 10 10 20 20 20 Average Capacity 17 | 7 9 10 19 20 20 Most Carried 20 | 1 10 10 11 16 20 Average Carried 11 | . 3 9 10 12 15 Final Capacity 20 | 8 10 10 20 20 20 Final Carried 18 | 1 10 10 11 16 18 Class Distribution -------------------- 98% | Mutant Dominant Class ---------------- Mutant | -10/Materials Mutant | -10/Mines Mutant | -10/Exiles Mutant | -9/Mines Mutant | -8/Materials Resources | -11 -10 -10 -10 -9 -8 ----------- Run | Yrd Mat Min Exi Min Mat Matter Collected 1171 | 248 101 208 . 127 487 Remotely . | . . . . . . Salvage Created 722 | . 188 100 . 128 306 Parts 52 | . 9 15 . 11 17 Haulers Intercepted . | . . . . . . Recyclers Shooed . | . . . . . . Parts Field Recycled . | . . . . . . Retrieved Matter . | . . . . . . Parts Self-Destructed . | . . . . . . Prevented . | . . . . . . Kills | -11 -10 -10 -10 -9 -8 ------- Run | Yrd Mat Min Exi Min Mat Combat Hostiles Destroyed 29 | . 5 7 . 5 12 Guns 6 | . 4 . . . 2 AOE 23 | . 1 7 . 5 10 Classes Destroyed 8 | . 3 . . 2 3 Worker 3 | . . . . 1 2 Builder 5 | . 1 1 . 1 2 Recycler 1 | . . . . 1 . Mechanic 1 | . . . . . 1 Watcher 2 | . . . . . 2 Swarmer 17 | . 2 5 . 2 8 Grunt 10 | . 3 2 . 3 2 Sentry 2 | . . . . . 2 Best Kill Streak 5 | . 3 3 . 5 5 Combat Bots Only 5 | . 3 3 . 3 5 Max Kills in Single Turn 3 | . 1 3 . 3 2 Gunslinging . | . . . . . . Exploded 3 | . 1 3 . 1 2 Melee . | . . . . . . Uniques/NPCs Destroyed . | . . . . . . Combat | -11 -10 -10 -10 -9 -8 -------- Run | Yrd Mat Min Exi Min Mat Hostile Shots Fired 248 | . 24 16 . 12 196 Missed 80 | . 5 8 . 4 63 Damage Taken 2828 | . 330 104 . 182 2212 Core 664 | . 79 15 . 20 550 Absorbed by Shields . | . . . . . . Core Remaining (%) 77 | 100 . . . 54 . Volleys Fired 88 | . 18 17 . 7 46 Largest 2 | . 2 2 . 2 2 Hottest 100 | . 70 60 . 60 100 Shots Fired 119 | . 36 23 . 7 53 Gun 56 | . 36 9 . . 11 Cannon . | . . . . . . Launcher 57 | . . 14 . 7 36 Special 6 | . . . . . 6 Kinetic 38 | . 18 9 . . 11 Thermal 24 | . 18 . . . 6 Explosive 57 | . . 14 . 7 36 Electromagnetic . | . . . . . . Robot Hit Streak 7 | . 7 5 . 4 6 Robot Miss Streak 6 | . 6 2 . 1 5 Penetration Max . | . . . . . . Secondary Targets 2 | . 2 . . . . Max Gunslinging Chain 1 | . 1 . . . . Shots Hit Robots 57 | . 17 9 . 5 26 Core Hits 65 | . 10 12 . 16 27 Critical Kills . | . . . . . . Critical Parts Destroyed . | . . . . . . Critical Strikes 2 | . 2 . . . . Burn 2 | . 2 . . . . Melee Attacks 5 | . . . . . 5 Impact 5 | . . . . . 5 Slashing . | . . . . . . Piercing . | . . . . . . Sneak Attacks 3 | . . . . . 3 Combat Hostiles . | . . . . . . Follow-up Attacks . | . . . . . . Damage Inflicted 3038 | . 295 441 . 661 1641 Guns 363 | . 201 55 . . 107 Cannons . | . . . . . . Explosions 2331 | . 94 363 . 656 1218 Melee 295 | . . . . . 295 Ramming 49 | . . 23 . 5 21 Kinetic 224 | . 62 55 . . 107 Thermal 139 | . 139 . . . . Explosive 2331 | . 94 363 . 656 1218 Electromagnetic . | . . . . . . Impact 295 | . . . . . 295 Slashing . | . . . . . . Piercing . | . . . . . . Highest Corruption 4 | . . . . . 4 Average Corruption 4 | . . . . . 4 Corruption Purged . | . . . . . . Corruption Blocked . | . . . . . . Effects 19 | . . . . . 19 Message Errors 4 | . . . . . 4 Matter Fused 3 | . . . . . 3 Heat Flow Errors 1 | . . . . . 1 Energy Discharges 2 | . . . . . 2 Parts Rejected 2 | . . . . . 2 Data Loss (minor) 3 | . . . . . 3 Data Loss (major) 1 | . . . . . 1 Misfires 2 | . . . . . 2 Alerts 1 | . . . . . 1 Overload Shots . | . . . . . . Overflow Damage 270 | . . . . 18 252 Projectiles . | . . . . . . Explosions 80 | . . . . 18 62 Melee 190 | . . . . . 190 Knockbacks 2 | . . . . . 2 Impact 2 | . . . . . 2 Kinetic . | . . . . . . Secondary . | . . . . . . Self-Inflicted Damage 445 | . 157 40 . 81 167 Shots 12 | . 2 1 . 4 5 Rammed 6 | . . 4 . . 2 Targets Rammed 12 | . . 5 . 2 5 Kicked 6 | . . 1 . 2 3 Crushed . | . . . . . . Highest Temperature 164 | . 164 . . 29 84 Average Temperature 36 | . 51 . . 22 23 Received Heat Transfer 810 | . 60 . . 48 702 Siege Activations . | . . . . . . Robots Corrupted 2 | . . . . . 2 Combat Hostiles . | . . . . . . Parts Fried 5 | . . . . . 5 Impact Corruptions 7 | . . . . . 7 Robots Melted . | . . . . . . Combat Hostiles . | . . . . . . Parts Melted 2 | . 2 . . . . Heat Transferred 555 | . 555 . . . . Parts Sabotaged . | . . . . . . Parts Stolen . | . . . . . . Parts Stripped . | . . . . . . Power Chain Reactions . | . . . . . . Alert | -11 -10 -10 -10 -9 -8 ------- Run | Yrd Mat Min Exi Min Mat Peak Influence 708 | . 163 175 . 215 708 Initial 55 | . . 4 . . 55 Average 102 | . 90 69 . 81 175 Maximum Alert Level 3 | . . . . 1 3 Low Security (%) 91 | 100 100 100 . 96 74 Level 1 3 | . . . . 3 7 Level 2 4 | . . . . . 18 Level 3 . | . . . . . . Level 4 . | . . . . . . Level 5 . | . . . . . . High Security . | . . . . . . Max Security . | . . . . . . Squads Dispatched 5 | . 3 . . . 2 Investigation 2 | . 2 . . . . Extermination . | . . . . . . Reinforcement 3 | . 1 . . . 2 Assault . | . . . . . . Garrison . | . . . . . . Intercept . | . . . . . . Searches Triggered . | . . . . . . Construction Impeded 1 | . . . . . 1 Haulers Reinforced . | . . . . . . Active Scanning Responses . | . . . . . . Cargo Convoy Interrupts . | . . . . . . Stealth | -11 -10 -10 -10 -9 -8 --------- Run | Yrd Mat Min Exi Min Mat Distress Signals 6 | . 1 . . . 5 Communications Jammed . | . . . . . . Distress Signals . | . . . . . . Times Spotted 61 | . 7 8 . 12 34 Peak Tracking Total 8 | . 3 3 . 4 8 Tactical Retreats 9 | . . . . 1 8 Traps | -11 -10 -10 -10 -9 -8 ------- Run | Yrd Mat Min Exi Min Mat Traps Triggered . | . . . . . . Indirectly . | . . . . . . Trap Hack Attempts . | . . . . . . Triggered . | . . . . . . Disarmed . | . . . . . . Reprogrammed . | . . . . . . Reused . | . . . . . . Traps Extracted . | . . . . . . Installed . | . . . . . . Triggered . | . . . . . . Machines | -11 -10 -10 -10 -9 -8 ---------- Run | Yrd Mat Min Exi Min Mat Machines Disabled 4 | . 2 . . . 2 Max in Single Turn 2 | . 2 . . . 1 Machines Repaired . | . . . . . . Machines Dismantled . | . . . . . . Machines Sabotaged . | . . . . . . Overloaded Fab Kills . | . . . . . . Hacking | -11 -10 -10 -10 -9 -8 --------- Run | Yrd Mat Min Exi Min Mat Machines Accessed 9 | . 3 . 3 . 3 Terminals 5 | . 2 . . . 3 Fabricators . | . . . . . . Repair Stations 1 | . 1 . . . . Recycling Units . | . . . . . . Scanalyzers . | . . . . . . Garrison Access . | . . . . . . Total Hacks 54 | . 8 . 40 . 6 Successful 46 | . 4 . 40 . 2 Failed 8 | . 4 . . . 4 Catastrophic 2 | . . . . . 2 Database Lockouts . | . . . . . . Manual 8 | . 2 . 1 . 5 Terminals 11 | . 5 . . . 6 Fabricators . | . . . . . . Repair Stations 3 | . 3 . . . . Recycling Units . | . . . . . . Scanalyzers . | . . . . . . Garrison Access . | . . . . . . Terminal Hacks 45 | . 3 . 40 . 2 Record 40 | . . . 40 . . Robot Analysis 1 | . . . . . 1 Alert Level 1 | . 1 . . . . Unreport Threat 2 | . 1 . . . 1 Recall Investigation 1 | . 1 . . . . Fabricator Hacks . | . . . . . . Repair Station Hacks 1 | . 1 . . . . Scan Component 1 | . 1 . . . . Recycling Unit Hacks . | . . . . . . Scanalyzer . | . . . . . . Garrison Access Hacks . | . . . . . . Unauthorized Hacks . | . . . . . . Terminals . | . . . . . . Fabricators . | . . . . . . Repair Stations . | . . . . . . Recycling Units . | . . . . . . Scanalyzers . | . . . . . . Garrison Access . | . . . . . . Data Cores Recovered . | . . . . . . Used . | . . . . . . Hacking Detections 6 | . 3 . . . 3 Full Trace Events 1 | . 1 . . . . Feedback Events . | . . . . . . Feedback Blocked . | . . . . . . Robot Schematics Acquired . | . . . . . . Robots Built . | . . . . . . Authchips . | . . . . . . Time . | . . . . . . Total Robot Build Rating . | . . . . . . Part Schematics Acquired . | . . . . . . Parts Built . | . . . . . . Authchips . | . . . . . . Time . | . . . . . . Total Part Build Rating . | . . . . . . Parts Repaired . | . . . . . . Time . | . . . . . . Parts Recycled . | . . . . . . Recycled Matter . | . . . . . . Retrieved Matter . | . . . . . . Retrieved Components . | . . . . . . Parts Scanalyzed . | . . . . . . Part Schematics Acquired . | . . . . . . Parts Damaged . | . . . . . . Bothacking | -11 -10 -10 -10 -9 -8 ------------ Run | Yrd Mat Min Exi Min Mat Used RIF Installer . | . . . . . . Robots Hacked . | . . . . . . Non-combat . | . . . . . . Combat . | . . . . . . Robot Hacks Applied . | . . . . . . Relay Couplers Released . | . . . . . . Fabnet Peak Effective % . | . . . . . . Robots Rewired . | . . . . . . Allies Hacked . | . . . . . . Hacks Repelled . | . . . . . . Allies | -11 -10 -10 -10 -9 -8 -------- Run | Yrd Mat Min Exi Min Mat Total Allies 6 | . . . . 6 . Largest Group 5 | . . . . 5 2 Highest-Rated Group 85 | . . . . 85 47 Highest-Rated Ally 31 | . . . . 31 31 Total Orders . | . . . . . . Ally Attacks 64 | . . . . 27 37 Total Damage 643 | . . . . 321 322 Kills 13 | . . . . 7 6 Allies Corrupted . | . . . . . . Allies Melted . | . . . . . . Intel | -11 -10 -10 -10 -9 -8 ------- Run | Yrd Mat Min Exi Min Mat Robot Analysis Total 1 | . . . . . 1 Derelict Logs Recovered 3 | . . 1 . 2 . Drone Launches . | . . . . . . Drone Recoveries . | . . . . . . Exploration | -11 -10 -10 -10 -9 -8 ------------- Run | Yrd Mat Min Exi Min Mat Turns Passed 6147 | 74 370 1107 2023 1473 1100 Spaces Moved 2822 | 42 181 686 850 519 544 Core 2 | 2 . . . . . Treads 783 | 40 181 562 . . . Legs 1774 | . . 124 850 519 281 Wheels . | . . . . . . Hover 263 | . . . . . 263 Flight . | . . . . . . Fastest Speed 50 | 50 160 120 120 260 108 Average Speed 201 | 154 160 152 237 274 154 Slowest Speed 490 | 160 160 160 260 400 490 Overloaded Moves . | . . . . . . Propulsion Burnouts . | . . . . . . Robots Hopped . | . . . . . . Cave-ins Triggered 1 | . . . . . 1 Exploration Rate (%) 53 | 4 34 78 94 76 37 Regions Visited 5 Branch Regions 3 Pre-discovered Areas 2 | . . 1 1 . . Known Exits Taken 4 | . 1 1 1 1 . Unknown Exits Taken 1 | 1 . . . . . Scrap Searched 2 | . . . . 2 . Spaces Dug 7 | . . . . . 7 Terrain Destroyed 454 | . 28 127 . 59 240 Melee 1 | . . . . . 1 Projectile 6 | . . . . . 6 AOE 447 | . 28 127 . 59 233 Terrain Rammed . | . . . . . . Walls Destroyed . | . . . . . . Machines Disabled . | . . . . . . Actions | -11 -10 -10 -10 -9 -8 --------- Run | Yrd Mat Min Exi Min Mat Total 3121 | 48 228 721 856 554 714 Wait 88 | . 9 . 4 16 59 Move 2817 | 41 180 685 849 518 544 Hop . | . . . . . . Pick Up 33 | 1 10 5 1 4 12 Fast Attach 18 | 6 3 1 . 1 7 Attach 13 | . . . . 2 11 Detach . | . . . . . . Swap 27 | . 4 3 1 4 15 Drop 20 | . 4 5 1 . 10 Fire 88 | . 18 17 . 7 46 Melee 5 | . . . . . 5 Ram 2 | . . . . . 2 Kick 6 | . . 1 . 2 3 Crush 4 | . . 4 . . . Escape Stasis . | . . . . . . Rewire . | . . . . . . Trap . | . . . . . . Miscellaneous . | . . . . . . Route ------- -11/Scrapyard -10/Materials -10/Mines (discovered 4 exits: *Mat x2 / *Exi / *Sub) -10/Exiles (discovered 2 exits: *Min x2) -9/Mines -8/Materials History --------- Turn | Location | Event 38 | -11/Scrapyard | Discovered new exit (range 15) 75 | -11/Scrapyard | Entered Materials 311 | -10/Materials | Build established: Mutant 374 | -10/Materials | Discovered new exit (range 15) 434 | -10/Materials | Identified exit to Mines 445 | -10/Materials | Entered Mines 446 | -10/Mines | Learned location of Storage (-7) 461 | -10/Mines | Met a Derelict bent on vengeance 600 | -10/Mines | Learned Materials terminal intel 750 | -10/Mines | Found a hidden stash of uninstalled traps 1036 | -10/Mines | Discovered new exit (range 13) 1411 | -10/Mines | Discovered new exit (range 10) 1422 | -10/Mines | Identified exit to Subcaves 1450 | -10/Mines | Discovered new exit (range 4) 1454 | -10/Mines | Identified exit to Materials 1534 | -10/Mines | Deemed a non-threat by the Exiles lab entrance 1535 | -10/Mines | Discovered new exit (range 5) 1540 | -10/Mines | Identified exit to Exiles 1552 | -10/Mines | Entered Exiles 1586 | -10/Exiles | Discovered new exit (range 15) 1611 | -10/Exiles | Identified exit to Mines 1646 | -10/Exiles | Met 8R-AWN 1663 | -10/Exiles | Met EX-HEX 1776 | -10/Exiles | Met EX-DEC 1834 | -10/Exiles | Visited The Gauntlet 2379 | -10/Exiles | Discovered exit to Mines (range 14) 2808 | -10/Exiles | Met EX-BIN 2865 | -10/Exiles | Aligned with FarCom system 2868 | -10/Exiles | Given EX-Vault access code 3044 | -10/Exiles | Opened EX-Vault 3216 | -10/Exiles | Warned to stay clear of 0b10 Research branches 3278 | -10/Exiles | Found Prototype Device 3435 | -10/Exiles | Learned location of Zion (-7) 3575 | -10/Exiles | Left Exiles lab with Skeleton Box 3575 | -10/Exiles | Entered Mines 3761 | -9/Mines | Received a Mining Laser from a helpful Derelict 3895 | -9/Mines | Received a Rocket Launcher from a helpful Derelict 4555 | -9/Mines | Discovered new exit (range 6) 4570 | -9/Mines | Identified exit to Materials 4643 | -9/Mines | Assisted by bots powering up and referring to "LRC-V3" 4653 | -9/Mines | Learned location of 1 exit from Proximity Caves 5048 | -9/Mines | Entered Materials 5048 | -8/Materials | Accompanied by 2 allies 5048 | -8/Materials | Evolved 4 slots: Propulsion x2, Utility x2 5049 | -8/Materials | Loaded intel: 12 terminal locations 5049 | -8/Materials | Identified Skeleton Box 5053 | -8/Materials | Led the pair of lost Derelicts to an unsafe place 5157 | -8/Materials | Crushed by falling debris 6108 | -8/Materials | Core integrity fell below 50% 6133 | -8/Materials | Core integrity fell below 20% 6141 | -8/Materials | Lost 9 parts (2p3n2u2w) 6148 | -8/Materials | Destroyed by G-47 Trooper with Particle Gun Last Messages --------------- Lgt. Nuclear Core destroyed. Critical hit (Burn: +37). Structural Scanner destroyed. Acquired 6 matter. Grenade Launcher destroyed. UPXL1AF&A=CALZ2FHIOQ The unstable cave ceiling collapses. Acquired 10 matter. Carbon-fiber Leg destroyed. Critical hit (Burn: +37). Kicked G-47 Trooper. Titanium Leg destroyed. Kicked G-47 Trooper. Lgt. Ion Engine destroyed. Titanium Leg destroyed. Slammed into G-47 Trooper. Critical hit (Burn: +37). R-06 Scavenger collects Lgt. Ion Engine. Critical hit (Burn: +37). System corrupted: Matter fused (-8). Map ----- +----------------------------------------------------+ | ??????? % !% ###???????????????????? | | ????????## % #### ##???????????????????? | | ????????### [ ##???????????????????? | | ??????????# ##???????????????????? | | ??????????## # #???????????????????? | | ??????????## # #?????????????T?????? | | ?????## # [ ###??????????????????? | | ##+## ###### # ! ####?????????????????? | | ######### # ## ## ?????????????????? | | " + + g [# !!##?????????????????? | | " ######### ########### !!##?????????????????? | | " ######### ##### * [[##?????????????????? | | ##?????## ##?## """ # ![[##?????????????????? | | " ##?????## ##?## """ # [[##?????????????????? | | " ##?????## ##?## """ " [[##?????????????????? | | " ##?????## ##?## "" # ############???????????? | | ##?????## ##?## #Y# #########???????????? | | " ##?????## ##?######### ## ##???????????? | | " ######### ######## ## # """ ##???######### | | " #########/######## #*# """ ##???######### | | !# #### #=## """ ##???## # | | +### #### # # ##???## """ # | | # ##### #=# """ ##???## """ [# | | / ##### # # """ ####?## " " # | | ## # ##?### # # """ ####### # | | ## # ###### #@## ##### # | | ## #######/##############g##### # ######+### | | ## g * | | ## ###### [= / | | ##+###### | | + ############## "T"######## | | """"" ##### ################## # ######### # | | """"" ##### #####???#####??### # #######?### | | """"" ##?## ################################## | | """"" ##### ##########T####################### | | """"" #####+#### | | """"" ### # | | """"" ### ! [ # | | ### + ###+#####??########+####### | | ########### """ # #! !##??#### ### | | + """ # ! # |##????## / # | | ###### # """ # #[ ##????## !! # | | ### ##+######### "T" ##????## ! #!!! | | ! ### + """ ##????## #!!! | | ################### ##????## #!!! | | / ### #######################????## # | | ######???????????##########????## # % | | #########?????????????????????????################ | | | | | +----------------------------------------------------+ Best States ------------- Heat Dissipation 31 Energy Generation 14 Energy Capacity 160 Matter Stores 300 Matter Capacity 300 Sight Range 16 Robot Scan Range 14 Terrain Scan Density 10 Armor Coverage 150 Evasion (%) 55 Recoil Reduction 2 Item Schematics ----------------- None Robot Schematics ------------------ None Fabricated ------------ Nothing Alien Tech Used ----------------- None Achievements -------------- None Challenges ------------ None Game ------ Seed SegregatorPhaseCasing Manual? 0 Play Time 00:38:21 Cumulative 13.5 hours Start 2024.08.29 @ 09:45:27 End 2024.08.29 @ 10:23:59 Sessions 1 Manual Loads 0 Difficulty Rogue Special Mode None Game No. 21 Rogue 21 Adventurer 0 Explorer 0 Win Type - Total 0 Types 0/0/0/0/0/0/0/0/0 Lore% 10 Gallery% 18 Achievement% 17 Wizard Run 0 Options --------- Layout 0 ASCII 0 Keyboard 0 Movement Arrows Keybinds 0 Fullscreen 1 Font 18/Cog Map View 76x50 Zoom Use 0% Tactical HUD 0 Map Filters NONE Filters NONE Steam 1 RUN: 478ae734-87d4-4bf6-bd5e-1b13a4ab0f34